Cogmind - Beta 11 X6 @@@ ROGUE MODE // 2021.08.06 @ 22:40:24 Player: aperiodic Result: Destroyed by EX-DEC with AWS/EX-DEC Performance ------------- Evolutions (1) 500 Regions Visited (5) 1000 Robots Destroyed (94) 470 Value Destroyed (2012) 2012 Prototype IDs (35) 700 Alien Tech Used (0) 0 Bonus (300) 300 TOTAL SCORE: 4982 Bonus ------- Aligned with FarCom 300 Cogmind --------- Core Integrity 0/400 Matter 210/300 Energy 310/310 System Corruption 5% Temperature Warm (195) Movement Core (850) Ox16 Location -9/Exiles Parts ------- > --- POWER (1) -------- Reinforced Fission Core > --- PROPULSION (2) --- (None) > --- UTILITY (3) ------ Disposable Heat Sink Large Storage Unit > --- WEAPON (3) ------- Autogun 8R-AWN's Boregun > --- INVENTORY (15) --- Light Treads Disposable Heat Sink Small Storage Unit 8R-AWN's Armor/EX Grenade Launcher Mini Grenade Launcher Axe Peak State ------------ > --- POWER ------------ Reinforced Fission Core > --- PROPULSION ------- Light Treads Light Treads > --- UTILITY ---------- Large Storage Unit 8R-AWN's Armor/EX > --- WEAPON ----------- Autogun Autogun 8R-AWN's Boregun > --- INVENTORY -------- Fission Core Fission Core Light Fission Core Small Storage Unit Autogun Autogun Grenade Launcher Mini Grenade Launcher [Rating: 45] Favorites ----------- Power Improved Ion Engine Engine Improved Ion Engine Power Core Reinforced Fission Core Propulsion Light Treads Treads Light Treads Leg Aluminum Leg Wheel Wheel Utility Light Armor Plating Device Disposable Heat Sink Storage High-capacity Storage Unit Hackware Hacking Suite Protection Light Armor Plating Weapon Advanced Beam Cannon Energy Gun Small Laser Energy Cannon Advanced Beam Cannon Ballistic Gun Light Assault Rifle Launcher Grenade Launcher Slashing Weapon Axe Build | -11 -10 -10 -9 -9 -9 ------- Run | Scr Mat Min Mat Min Exi Slots Evolved 2 | . . . 2 . . Power . | . . . . . . Propulsion . | . . . . . . Utility 1 | . . . 1 . . Weapon 1 | . . . 1 . . Parts Attached 90 | 6 1 8 41 10 24 Power 7 | 1 . 2 3 . 1 Engine 5 | 1 . 1 3 . . Core 2 | . . 1 . . 1 Reactor . | . . . . . . Propulsion 19 | 2 . 2 12 1 2 Treads 13 | 2 . . 8 1 2 Leg 2 | . . . 2 . . Wheel 4 | . . 2 2 . . Hover . | . . . . . . Flight . | . . . . . . Utility 26 | 1 1 . 10 6 8 Device 9 | . . . 4 3 2 Storage 7 | 1 1 . 3 . 2 Processor . | . . . . . . Hackware 1 | . . . 1 . . Protection 9 | . . . 2 3 4 Artifact . | . . . . . . Weapon 38 | 2 . 4 16 3 13 Energy Gun 2 | 1 . 1 . . . Energy Cannon 13 | . . . 8 2 3 Ballistic Gun 18 | 1 . 3 6 . 8 Ballistic Cannon . | . . . . . . Launcher 4 | . . . 2 1 1 Special Weapon . | . . . . . . Impact Weapon . | . . . . . . Slashing Weapon 1 | . . . . . 1 Piercing Weapon . | . . . . . . Special Melee Weapon . | . . . . . . Unidentified Prototypes 6 | . . . 1 2 3 Parts Lost 22 | . . 7 1 1 13 Power 3 | . . 2 . . 1 Propulsion 7 | . . 3 . . 4 Utility 5 | . . . . 1 4 Weapon 7 | . . 2 1 . 4 Highest Loss Streak 6 | . . 2 1 1 6 Average Slot Usage (%) 92 | . 85 79 97 99 87 Engine 9 | . 14 8 10 11 6 Core 2 | . . 5 . . 4 Treads 19 | . 28 10 20 22 20 Wheel 1 | . . 12 . . . Device 8 | . . . 9 11 9 Storage 11 | . 14 14 11 11 12 Protection 7 | . . . 9 10 7 Energy Gun 1 | . 14 9 . . . Energy Cannon 20 | . . . 26 32 14 Ballistic Gun 8 | . 14 18 6 . 10 Naked Turns . | . . . . . . Heaviest Build 77 | 10 25 27 63 63 77 Greatest Support 52 | 40 40 40 40 40 52 Greatest Overweight (x) 3 | . . 2 3 1 1 Average Overweight (x) . | . . 1 . 1 . Largest Inventory Capacity 25 | 8 15 15 25 20 20 Average Capacity 17 | 6 13 15 19 20 16 Most Carried 21 | 2 8 15 21 20 20 Average Carried 16 | . 4 13 18 19 13 Final Capacity 20 | 8 15 15 20 20 15 Final Carried 20 | 2 8 15 20 20 8 Class Distribution -------------------- 55% | Scavenger-Tank 13% | Mutant 12% | Scavenger-Mutant 10% | Scavenger-Gunner 7% | Tank Dominant Class ---------------- Mutant | -10/Materials Mutant | -10/Mines Scavenger-Tank | -9/Materials Scavenger-Tank | -9/Mines Scavenger-Tank | -9/Exiles Resources | -11 -10 -10 -9 -9 -9 ----------- Run | Scr Mat Min Mat Min Exi Matter Collected 1940 | 253 55 132 621 278 601 Remotely . | . . . . . . Salvage Created 3609 | 139 246 617 2081 172 354 Parts 224 | 9 22 49 123 9 12 Haulers Intercepted 5 | . . . 5 . . Recyclers Shooed 11 | . 3 1 6 1 . Parts Field Recycled . | . . . . . . Retrieved Matter . | . . . . . . Parts Self-Destructed . | . . . . . . Prevented . | . . . . . . Kills | -11 -10 -10 -9 -9 -9 ------- Run | Scr Mat Min Mat Min Exi Combat Hostiles Destroyed 66 | . 7 20 26 5 8 Guns 35 | . 7 20 7 . 1 Cannons 20 | . . . 17 3 . AOE 10 | . . . 1 2 7 Classes Destroyed 15 | 2 3 2 4 1 3 Worker 7 | . . 1 6 . . Builder 1 | . . 1 . . . Tunneler 5 | 3 . 1 1 . . Hauler 5 | . . . 5 . . Recycler 7 | 1 . . 6 . . Mechanic 1 | . . . 1 . . Operator 3 | . 1 . 2 . . Turret 1 | . . . . . 1 Watcher 5 | . . . 5 . . Swarmer 20 | . 3 12 3 2 . Grunt 25 | . 4 8 13 . . Sentry 10 | . . . 10 . . Demolisher 2 | . . . . 2 . Zionite 1 | . . . . . 1 Assembled 7 | . . . . . 7 Best Kill Streak 12 | 2 5 4 12 2 7 Combat Bots Only 7 | . 5 4 5 2 7 Max Kills in Single Turn 3 | 1 1 2 1 2 3 Gunslinging . | . . . . . . Exploded 3 | . . . 1 2 3 Melee . | . . . . . . Uniques/NPCs Destroyed 2 | . . . . 1 1 YI-UF0 (-9/Mines) 8R-AWN (-9/Exiles) Combat | -11 -10 -10 -9 -9 -9 -------- Run | Scr Mat Min Mat Min Exi Damage Taken 4164 | . 237 753 781 546 1847 Core 630 | . 32 197 90 62 249 Absorbed by Shields . | . . . . . . Core Remaining (%) 54 | 100 . 8 . . . Volleys Fired 278 | 11 27 60 122 7 51 Largest 3 | 2 2 2 3 3 3 Hottest 204 | 60 60 60 204 204 204 Shots Fired 610 | 22 54 115 286 20 113 Gun 423 | 22 54 115 137 . 95 Cannon 174 | . . . 145 19 10 Launcher 13 | . . . 4 1 8 Special . | . . . . . . Kinetic 341 | 11 27 71 137 . 95 Thermal 256 | 11 27 44 145 19 10 Explosive 13 | . . . 4 1 8 Electromagnetic . | . . . . . . Robot Hit Streak 18 | 4 5 18 12 4 12 Robot Miss Streak 8 | 2 4 4 8 3 3 Penetration Max . | . . . . . . Secondary Targets 4 | . 2 2 . . . Max Gunslinging Chain 1 | . 1 1 . . . Shots Hit Robots 377 | 14 35 75 159 9 85 Core Hits 186 | 6 18 44 75 7 36 Critical Kills 2 | . . . 2 . . Critical Parts Destroyed 2 | . . . . . 2 Critical Strikes 4 | . . . 2 . 2 Meltdown 2 | . . . 2 . . Destroy 2 | . . . . . 2 Melee Attacks 10 | . . . . . 10 Impact . | . . . . . . Slashing 10 | . . . . . 10 Piercing . | . . . . . . Sneak Attacks . | . . . . . . Combat Hostiles . | . . . . . . Follow-up Attacks . | . . . . . . Damage Inflicted 6650 | 137 350 740 2806 289 2328 Guns 2871 | 137 350 740 650 . 994 Cannons 2188 | . . . 1941 165 82 Explosions 761 | . . . 202 101 458 Melee 794 | . . . . . 794 Ramming 36 | . . . 13 23 . Kinetic 2223 | 59 148 372 650 . 994 Thermal 2836 | 78 202 368 1941 165 82 Explosive 761 | . . . 202 101 458 Electromagnetic . | . . . . . . Impact . | . . . . . . Slashing 794 | . . . . . 794 Piercing . | . . . . . . Highest Corruption 5 | . . . . . 5 Average Corruption 3 | . . . . . 3 Corruption Purged . | . . . . . . Effects 1 | . . . . . 1 Data Loss (minor) 1 | . . . . . 1 Overload Shots . | . . . . . . Overflow Damage 109 | . . . 29 . 80 Projectiles 29 | . . . 29 . . Explosions 4 | . . . . . 4 Melee 76 | . . . . . 76 Knockbacks . | . . . . . . Impact . | . . . . . . Kinetic . | . . . . . . Secondary . | . . . . . . Self-Inflicted Damage 78 | . . . . 29 49 Shots 3 | . . . . 1 2 Rammed 7 | . . . 4 3 . Targets Rammed 7 | . . . 4 3 . Kicked . | . . . . . . Crushed . | . . . . . . Highest Temperature 267 | 40 147 121 267 179 218 Average Temperature 78 | 17 39 37 86 83 142 Received Heat Transfer 773 | . 105 288 360 20 . Effects 3 | . . . 3 . . Interference 3 | . . . 3 . . Siege Activations . | . . . . . . Robots Corrupted . | . . . . . . Combat Hostiles . | . . . . . . Parts Fried . | . . . . . . Impact Corruptions . | . . . . . . Robots Melted 2 | . . . 2 . . Combat Hostiles 1 | . . . 1 . . Parts Melted 11 | . 1 1 9 . . Heat Transferred 5236 | 175 450 800 3367 296 148 Parts Sabotaged . | . . . . . . Parts Stolen . | . . . . . . Parts Stripped . | . . . . . . Power Chain Reactions . | . . . . . . Missiles Intercepted . | . . . . . . Alert | -11 -10 -10 -9 -9 -9 ------- Run | Scr Mat Min Mat Min Exi Peak Influence 396 | 20 316 308 396 154 . Initial 154 | . 13 123 88 154 . Average 188 | 7 149 228 242 50 . Maximum Alert Level 1 | . 1 1 1 . . Low Security (%) 51 | 100 62 31 35 100 . Level 1 48 | . 37 68 64 . . Level 2 . | . . . . . . Level 3 . | . . . . . . Level 4 . | . . . . . . Level 5 . | . . . . . . High Security . | . . . . . . Max Security . | . . . . . . Squads Dispatched 5 | . 2 . 3 . . Investigation 2 | . 1 . 1 . . Extermination . | . . . . . . Reinforcement 3 | . 1 . 2 . . Assault . | . . . . . . Garrison . | . . . . . . Intercept . | . . . . . . Construction Impeded . | . . . . . . Haulers Reinforced . | . . . . . . Active Scanning Responses . | . . . . . . Cargo Convoy Interrupts . | . . . . . . Stealth | -11 -10 -10 -9 -9 -9 --------- Run | Scr Mat Min Mat Min Exi Distress Signals 11 | . 4 . 7 . . Communications Jammed . | . . . . . . Distress Signals . | . . . . . . Times Spotted 106 | . 14 21 41 10 20 Peak Tracking Total 9 | . 7 5 5 5 9 Tactical Retreats 7 | . 1 1 1 . 4 Traps | -11 -10 -10 -9 -9 -9 ------- Run | Scr Mat Min Mat Min Exi Traps Triggered . | . . . . . . Indirectly . | . . . . . . Trap Hack Attempts . | . . . . . . Triggered . | . . . . . . Disarmed . | . . . . . . Reprogrammed . | . . . . . . Reused 2 | . . . . . 2 Traps Extracted . | . . . . . . Installed 3 | . . . . . 3 Triggered . | . . . . . . Machines | -11 -10 -10 -9 -9 -9 ---------- Run | Scr Mat Min Mat Min Exi Machines Disabled 16 | . . . 3 2 11 Max in Single Turn 2 | . . . 1 2 2 Machines Sabotaged . | . . . . . . Garrisons Compromised . | . . . . . . Overloaded Fab Kills . | . . . . . . Fab Network Shutdowns . | . . . . . . Hacking | -11 -10 -10 -9 -9 -9 --------- Run | Scr Mat Min Mat Min Exi Machines Accessed 15 | . 3 . 9 1 2 Terminals 8 | . 2 . 6 . . Fabricators . | . . . . . . Repair Stations 1 | . . . 1 . . Recycling Units 2 | . 1 . 1 . . Scanalyzers 1 | . . . 1 . . Garrison Access . | . . . . . . Total Hacks 35 | . 10 . 22 1 2 Successful 28 | . 7 . 18 1 2 Failed 7 | . 3 . 4 . . Catastrophic . | . . . . . . Database Lockouts . | . . . . . . Manual 22 | . 8 . 13 . 1 Terminals 26 | . 9 . 17 . . Fabricators . | . . . . . . Repair Stations 2 | . . . 2 . . Recycling Units 2 | . 1 . 1 . . Scanalyzers 2 | . . . 2 . . Garrison Access . | . . . . . . Terminal Hacks 13 | . 4 . 6 1 2 Record 1 | . . . . . 1 Robot Analysis 3 | . 2 . 1 . . Prototype ID Bank 3 | . . . 3 . . Open Door 1 | . . . . 1 . Terminal Index 2 | . 1 . 1 . . Locate Traps 1 | . 1 . . . . Hauler Manifests 1 | . . . 1 . . EX-Prototype ID Bank 1 | . . . . . 1 Fabricator Hacks . | . . . . . . Repair Station Hacks 2 | . . . 2 . . Scan Component 1 | . . . 1 . . Repair 1 | . . . 1 . . Recycling Unit Hacks . | . . . . . . Scanalyzer 2 | . . . 2 . . Insert Component 1 | . . . 1 . . Analyze 1 | . . . 1 . . Garrison Access Hacks . | . . . . . . Unauthorized Hacks 11 | . 3 . 8 . . Terminals 9 | . 2 . 7 . . Track 2 | . . . 2 . . Assimilate 3 | . 1 . 2 . . Botnet 2 | . . . 2 . . Operators 2 | . 1 . 1 . . Fabricators . | . . . . . . Repair Stations . | . . . . . . Recycling Units 2 | . 1 . 1 . . Tunnel 2 | . 1 . 1 . . Scanalyzers . | . . . . . . Garrison Access . | . . . . . . Data Cores Recovered . | . . . . . . Used . | . . . . . . Hacking Detections 9 | . 2 . 7 . . Full Trace Events . | . . . . . . Feedback Events . | . . . . . . Feedback Blocked . | . . . . . . Robot Schematics Acquired . | . . . . . . Robots Built . | . . . . . . Matter . | . . . . . . Time . | . . . . . . Total Robot Build Rating . | . . . . . . Part Schematics Acquired 1 | . . . 1 . . Parts Built . | . . . . . . Matter . | . . . . . . Time . | . . . . . . Total Part Build Rating . | . . . . . . Parts Repaired 1 | . . . 1 . . Time 26 | . . . 26 . . Parts Recycled . | . . . . . . Recycled Matter . | . . . . . . Retrieved Matter . | . . . . . . Retrieved Components . | . . . . . . Parts Scanalyzed 1 | . . . 1 . . Part Schematics Acquired 1 | . . . 1 . . Parts Damaged . | . . . . . . Bothacking | -11 -10 -10 -9 -9 -9 ------------ Run | Scr Mat Min Mat Min Exi Used RIF Installer . | . . . . . . Robots Hacked . | . . . . . . Non-combat . | . . . . . . Combat . | . . . . . . Robot Hacks Applied . | . . . . . . Relay Couplers Released . | . . . . . . Robots Rewired . | . . . . . . Allies Hacked . | . . . . . . Hacks Repelled . | . . . . . . Allies | -11 -10 -10 -9 -9 -9 -------- Run | Scr Mat Min Mat Min Exi Total Allies . | . . . . . . Largest Group . | . . . . . . Highest-Rated Group . | . . . . . . Highest-Rated Ally . | . . . . . . Total Orders 1 | . . . . 1 . RETURN 1 | . . . . 1 . Ally Attacks . | . . . . . . Total Damage . | . . . . . . Kills . | . . . . . . Allies Corrupted . | . . . . . . Allies Melted . | . . . . . . Intel | -11 -10 -10 -9 -9 -9 ------- Run | Scr Mat Min Mat Min Exi Robot Analysis Total 3 | . 2 . 1 . . Derelict Logs Recovered 2 | . . 1 . 1 . Drone Launches 1 | . . . . 1 . Drone Recoveries 1 | . . . . 1 . Exploration | -11 -10 -10 -9 -9 -9 ------------- Run | Scr Mat Min Mat Min Exi Turns Passed 9287 | 119 293 1064 3803 1536 2472 Spaces Moved 3757 | 54 130 646 1362 571 994 Core 8 | 8 . . . . . Treads 3115 | 46 130 127 1247 571 994 Legs 19 | . . . 19 . . Wheels 615 | . . 519 96 . . Hover . | . . . . . . Flight . | . . . . . . Fastest Speed 50 | 50 160 95 95 260 160 Average Speed 216 | 143 160 134 241 260 223 Slowest Speed 260 | 160 160 260 260 260 260 Overloaded Moves . | . . . . . . Propulsion Burnouts . | . . . . . . Robots Hopped . | . . . . . . Cave-ins Triggered . | . . . . . . Exploration Rate (%) 63 | 4 25 100 81 98 74 Regions Visited 5 Branch Regions 3 Pre-discovered Areas 4 | . 1 . 1 1 1 Known Exits Taken . | . . . . . . Unknown Exits Taken 5 | 1 1 1 1 1 . Scrap Searched 2 | . . 1 . 1 . Spaces Dug 1 | . . . . . 1 Terrain Destroyed 68 | . . . 31 9 28 Melee . | . . . . . . Projectile 3 | . . . . 1 2 AOE 65 | . . . 31 8 26 Terrain Rammed . | . . . . . . Walls Destroyed . | . . . . . . Machines Disabled . | . . . . . . Actions | -11 -10 -10 -9 -9 -9 --------- Run | Scr Mat Min Mat Min Exi Total 4425 | 73 167 744 1688 600 1153 Wait 141 | . 3 15 81 3 39 Move 3752 | 53 129 645 1361 570 994 Hop . | . . . . . . Pick Up 70 | 3 6 14 35 3 9 Fast Attach 24 | 5 1 . 7 2 9 Attach 24 | 1 . 6 7 . 10 Detach 2 | . . . 1 . 1 Swap 42 | . . 2 27 8 5 Drop 72 | . 1 2 43 4 22 Fire 278 | 11 27 60 122 7 51 Melee 10 | . . . . . 10 Ram . | . . . . . . Kick . | . . . . . . Crush 7 | . . . 4 3 . Escape Stasis . | . . . . . . Rewire . | . . . . . . Trap 3 | . . . . . 3 Miscellaneous . | . . . . . . Route ------- -11/Scrapyard -10/Materials -10/Mines (discovered 2 exits: *Mat x2) -9/Materials (discovered 4 exits: [*Mat x2] / *Min / [*Sto]) -9/Mines (discovered 4 exits: [*Mat x2] / *Exi / [*Zio]) -9/Exiles (discovered 1 exit: [*Min]) History --------- Turn | Location | Event 12 | -11/Scrapyard | Discovered new exit (range 15) 120 | -11/Scrapyard | Entered Materials 293 | -10/Materials | Discovered new exit (range 14) 302 | -10/Materials | Build established: Mutant 413 | -10/Materials | Entered Mines 525 | -10/Mines | Core integrity fell below 50% 617 | -10/Mines | Found a hidden stash of uninstalled traps 743 | -10/Mines | Discovered new exit (range 5) 1161 | -10/Mines | Core integrity fell below 20% 1179 | -10/Mines | Discovered new exit (range 10) 1344 | -10/Mines | Learned Materials trap positions 1409 | -10/Mines | Build established: Scavenger-Mutant 1477 | -10/Mines | Entered Materials 1477 | -9/Materials | Evolved 2 slots: Utility x1, Weapon x1 1478 | -9/Materials | Loaded intel: 10 trap records 1936 | -9/Materials | Build established: Scavenger-Gunner 2042 | -9/Materials | Repaired Lgt. Treads 2276 | -9/Materials | Build established: Scavenger-Tank 3445 | -9/Materials | Build established: Tank 3717 | -9/Materials | Discovered new exit (range 6) 3985 | -9/Materials | Build established: Scavenger-Tank 3991 | -9/Materials | Discovered new exit (range 15) 4606 | -9/Materials | Discovered new exit (range 11) 4787 | -9/Materials | Discovered new exit (range 12) 5280 | -9/Materials | Entered Mines 5289 | -9/Mines | Found the Drone Emporium 5301 | -9/Mines | Found Prototype Device 5302 | -9/Mines | Identified Splice Drone Bay 5604 | -9/Mines | Destroyed YI-UF0 5753 | -9/Mines | Discovered new exit (range 5) 5777 | -9/Mines | Discovered new exit (range 7) 6160 | -9/Mines | Assembled infested the area 6243 | -9/Mines | Met 8R-AWN 6560 | -9/Mines | A weapon hastily lodged in a ceiling crevice suddenly fell to the ground 6590 | -9/Mines | A Derelict revealed a hidden shortcut to a safe place 6669 | -9/Mines | Found a damaged Exp. Sensor Array with a note attached 6677 | -9/Mines | Found Prototype Device 6678 | -9/Mines | Identified Exp. Sensor Array 6805 | -9/Mines | Discovered new exit (range 5) 6816 | -9/Mines | Entered Exiles 6881 | -9/Exiles | Welcomed by 8R-AWN 6923 | -9/Exiles | Met EX-HEX 6952 | -9/Exiles | Learned about 8R-AWN's background 7070 | -9/Exiles | Met EX-BIN 7107 | -9/Exiles | Aligned with FarCom system 7109 | -9/Exiles | Given EX-Vault access code 7177 | -9/Exiles | Opened EX-Vault 7237 | -9/Exiles | Warned to stay clear of 0b10 Research branches 7307 | -9/Exiles | Met EX-DEC 7322 | -9/Exiles | Learned location of Zion (-7) 7661 | -9/Exiles | Discovered new exit (range 12) 7988 | -9/Exiles | Build established: Scavenger-Mutant 8073 | -9/Exiles | Attacked by the Exiles 8133 | -9/Exiles | Destroyed 7 combat bots 8238 | -9/Exiles | Destroyed 8R-AWN 8246 | -9/Exiles | Found Prototype Protection 8247 | -9/Exiles | Identified 8R-AWN's Armor/EX 8268 | -9/Exiles | Lost 5 parts (1p1n3u) 8268 | -9/Exiles | Found Prototype Ballistic Gun 8268 | -9/Exiles | Identified 8R-AWN's Boregun 9263 | -9/Exiles | Build established: Scavenger-Gunner 9268 | -9/Exiles | Core integrity fell below 50% 9280 | -9/Exiles | Core integrity fell below 20% 9288 | -9/Exiles | Destroyed by EX-DEC with AWS/EX-DEC Last Messages --------------- 09264_ Lgt. Treads destroyed. 09268_ EX-BIN: "I just want to science!" 09268_ Machine disabled. 09272_ Adv. Beam Cannon destroyed. 09273_ Lgt. Treads destroyed. 09274_ Gravity Neutralizing Apparatus destroyed. 09276_ HV Slug penetrates GM-J5T. 09276_ GM-J5T suffers critical hit (Destroy). 09276_ Destroyed Cooling System. 09276_ HV Slug penetrates Testing Chamber Shield. 09276_ GM-J5T destroyed. 09277_ Adv. Beam Cannon destroyed. 09279_ HV Slug penetrates Wall. 09282_ HV Slug penetrates Testing Chamber Shield. 09282_ HV Slug penetrates Testing Apparatus. 09283_ System corrupted: Component data lost. 09285_ HV Slug penetrates EX-DEC. 09285_ HV Slug penetrates Machine. 09287_ HV Slug penetrates Testing Chamber Shield. 09287_ HV Slug penetrates Testing Apparatus. Map ----- +----------------------------------------------------+ | ??????????#"" ########??####"""" | | ??????????#""" ## ####""" | | ??????????#"" !! """" | | ??????????##"" | | ???????????#"""" | | ???????????## | | ????????????#" " "" | | ????????????#""" ""## ##""" " " " | | ????????????#"" ""#### ######""" "" | | ????????????#" """"##??# #????###"""" | | ????????????#""" """#??## ####???##### | | ????????????## ""##??#! "!#???????? | | ?????????????#"" """##???#" #???????? | | ?????????????##""" ##????#" "#???????? | | ??????????????##"""" ##?????#!!""!"#???????? | | ???????????????### #??????########???????? | | ?????????????????##### ##?????????????????????? | | ?????????????????????## #??????????????????????? | | ??????????????????????# #??????????????????????? | | ??????????????????????# #??????????????????????? | | ??????????????????????# #??????????????????????? | | ??????????????????????# #??????????????????????? | | ??????????????????????# #??????????????????????? | | ??????????????????????# #??????????????????????? | | ??????????????????????# #??????????????????????? | | ??????????????????????# @#??????????????????????? | | ??????????????????????#!%!#??????????????????????? | | ??????????????????????# = #??????????????????????? | | ????????????????????? c "??????????????????????? | | ???????????????????? ??????????????????????? | | ??????????????????? ??????????????????????? | | ?????????????????? c ??????????????????????? | | ????????????????? ?????????????????????? | | ??????????????? " ?????????????????????? | | ?????????????? " """ ?????????????????????? | | ??????????????"""########"""?????????????????????? | | ????????????????????????? "????????????????????? | | ????????????????????????? "?????????????????????? | | ?????????????????????????""??????????????????????? | | ?????????????????????????????????????????????????? | | ?????????????????????????????????????????????????? | | ?????????????????????????????????????????????????? | | ?????????????????????????????????????????????????? | | ?????????????????????????????????????????????????? | | ?????????????????????????????????????????????????? | | ?????????????????????????????????????????????????? | | | | | | | | | +----------------------------------------------------+ Best States ------------- Heat Dissipation 38 Coolant Potential 50 Energy Generation 19 Energy Capacity 310 Matter Stores 500 Matter Capacity 500 Sight Range 16 Terrain Scan Density 10 Additional Mass Support 12 Armor Coverage 1000 Resistance: EX 90 Evasion (%) 41 Recoil Reduction 2 Offensive Hacking 10 Item Schematics ----------------- Huge Storage Unit | -9/Materials | Scanalyzed Robot Schematics ------------------ None Fabricated ------------ Nothing Alien Tech Used ----------------- None Achievements -------------- None Challenges ------------ None Game ------ Seed ThiefBombExoskeleton Manual? 0 Play Time 01:00:33 Cumulative 421.0 hours Start 2021.08.06 @ 02:01:55 End 2021.08.06 @ 22:40:24 Sessions 3 Manual Loads 0 Difficulty Rogue Special Mode None Game No. 137 Rogue 133 Adventurer 4 Explorer 0 Win Type - Total 10 Types 5/1/3/0/0/0/0/1/0 Lore% 82 Gallery% 81 Achievement% 68 Wizard Run 0 Options --------- ASCII 1 Keyboard 0 Movement Arrows Keybinds 0 Fullscreen 1 Font 18/Terminus Map View 76x50 Tactical HUD 1 Map Filters NONE Filters NONE Steam 1 RUN: 7a7776cd-50d4-4315-bded-bfb7660bf6b3